bitfinex/quotes_ETHUSD_20220309
["timestamp","ask_amount","ask_price","bid_price","bid_amount"]
[1646862619402,1.05743184,2705.5,2705.0,0.98810519]
[1646862620244,1.05743184,2705.5,2705.0,0.98496328]
[1646862620445,1.05743184,2705.5,2705.0,0.98810518]
[1646862620845,1.98226184,2705.5,2705.0,0.0031419]
[1646862621146,0.3,2705.4,2705.0,0.0031419]
[1646862621349,0.3,2705.4,2704.9,0.00833599]
[1646862621549,0.92483,2705.3,2704.9,0.00833599]
[1646862621749,0.92483,2705.3,2705.0,0.0031419]
[1646862622554,0.92483,2705.3,2704.9,0.09063457]
[1646862622955,0.92483,2705.3,2705.0,0.0031419]
[1646862623753,0.92483,2705.3,2704.9,0.09063457]
[1646862624001,0.92483,2705.3,2705.0,0.00314191]
[1646862624602,1.43239614,2705.4,2705.0,0.00314191]
[1646862624805,0.43239614,2705.4,2705.0,1.62316618]
[1646862625001,0.43239614,2705.4,2705.0,0.08430348]
[1646862625201,0.13239614,2705.4,2705.1,1.53567576]
[1646862625601,0.13239614,2705.4,2705.2,0.07060068]
[1646862625807,0.13239614,2705.4,2705.0,0.09017721]
[1646862626006,0.13239614,2705.4,2705.1,1.53553375]
[1646862626205,0.13239614,2705.4,2705.2,0.07624948]
[1646862626605,0.13239614,2705.4,2705.0,0.08734745]
[1646862626905,0.13239614,2705.4,2705.0,0.23521945]
[1646862627104,0.13239614,2705.4,2705.0,0.08734745]
[1646862627504,0.13239614,2705.4,2705.0,0.08420554]
[1646862627751,0.13239614,2705.4,2705.0,0.08734745]
[1646862628751,2.28157043,2705.7,2705.0,0.08420554]
[1646862628954,2.28157043,2705.7,2705.0,0.08734745]
[1646862629151,1.35683043,2705.7,2705.0,0.08734745]
[1646862629352,1.35683043,2705.7,2705.1,1.53556779]
[1646862634422,1.35683043,2705.7,2705.1,1.53462028]
[1646862634623,2.28157043,2705.7,2705.1,1.53462028]
[1646862635654,2.28157043,2705.7,2705.2,3.8721]
[1646862635655,0.13214043,2705.7,2705.2,3.8721]
[1646862635857,0.01951608,2706.0,2705.8,0.26428086]
[1646862636255,0.00367881,2705.9,2705.8,0.26428086]
[1646862636853,0.00367881,2705.9,2705.8,1.30337944]
[1646862637056,0.01951608,2706.0,2705.8,1.38668079]
[1646862637253,0.02319525,2706.0,2705.8,1.38668079]
[1646862638053,0.02319525,2706.0,2705.9,0.07563358]
[1646862638257,0.01951608,2706.0,2705.9,0.07563358]
[1646862638455,0.02319523,2706.0,2705.9,3.57380073]
[1646862638906,0.02319523,2706.0,2705.9,3.57563358]
[1646862639108,0.02319523,2706.0,2705.9,0.07563358]
[1646862639511,0.01951608,2706.0,2705.9,0.07563358]
[1646862640511,0.01951608,2706.0,2705.9,3.57563358]
[1646862640909,0.01951608,2706.0,2705.9,0.07563358]
[1646862642750,0.01951608,2706.0,2705.8,0.26428086]
[1646862643554,0.01951608,2706.0,2705.8,0.33970091]
[1646862644656,0.02338425,2706.0,2705.8,0.33970091]
[1646862645456,0.01951608,2706.0,2705.8,0.33970091]
[1646862645655,0.02338425,2706.0,2705.8,0.33970091]
[1646862645856,0.02338425,2706.0,2705.9,0.08189226]
[1646862646617,0.01951608,2706.0,2705.9,0.08189226]
[1646862648014,0.01951608,2706.0,2705.9,0.45399226]
[1646862648214,0.01951608,2706.0,2705.9,3.95399226]
[1646862650161,0.01951608,2706.0,2705.9,4.10180126]
[1646862651551,0.01951608,2706.0,2705.9,3.95399226]
[1646862652453,0.01951608,2706.0,2705.9,3.98316026]
[1646862653906,0.01951608,2706.0,2705.9,4.13096626]
[1646862654310,0.01951608,2706.0,2705.9,3.98316026]
[1646862654514,0.08879076,2706.3,2706.0,5.5]
[1646862654811,0.08879076,2706.3,2706.2,0.07635988]
[1646862655811,0.08879076,2706.3,2706.0,0.08468126]
[1646862656012,0.02818748,2706.4,2706.3,0.25915981]
[1646862656212,0.05168028,2706.4,2706.3,0.25915981]
[1646862656412,0.05168028,2706.4,2706.3,0.20570252]
[1646862659061,0.05168028,2706.4,2706.3,0.17758152]
[1646862660267,0.0110998,2706.8,2706.7,11.35]
[1646862660466,9.98e-05,2706.8,2706.7,5.48287017]
[1646862660667,9.98e-05,2706.8,2706.7,16.83287017]
[1646862660864,0.0297439,2707.1,2707.0,11.7221]
[1646862660865,0.021978,2707.1,2707.0,11.7221]
[1646862661066,0.021978,2707.1,2707.0,3.93294018]
[1646862661501,0.021978,2707.1,2707.0,7.43294018]
[1646862662110,0.021978,2707.1,2707.0,4.08068918]
[1646862662306,0.03805388,2707.3,2707.1,5.8721]
[1646862662511,0.06910152,2707.6,2707.3,5.5]
[1646862662710,0.09430206,2707.5,2707.4,0.11133391]
[1646862664409,0.10009794,2707.8,2707.6,0.03345059]
[1646862664615,0.10591076,2707.7,2707.6,3.60726095]
[1646862664808,0.00591076,2707.7,2707.6,3.60726095]
[1646862665009,0.04753344,2707.7,2707.6,3.60726095]
[1646862665458,0.04753344,2707.7,2707.6,0.10726095]
[1646862665860,0.04753344,2707.7,2707.6,0.03345059]
[1646862666064,0.04753344,2707.7,2707.5,0.14772]
[1646862666458,0.04753344,2707.7,2707.1,0.08818702]
[1646862667058,0.04753344,2707.7,2707.1,3.61634602]
[1646862667264,0.04753344,2707.7,2707.1,3.61041518]
[1646862667559,0.04753344,2707.7,2707.3,0.3721]
[1646862667760,0.04753344,2707.7,2707.6,0.029168]
[1646862670507,0.05421288,2707.7,2707.6,0.029168]
[1646862672107,0.05421288,2707.7,2707.4,0.028001]
[1646862672758,0.05421288,2707.7,2707.2,0.06894219]
[1646862672958,0.05421288,2707.7,2707.3,0.028001]
[1646862673356,0.05421288,2707.7,2707.1,0.028001]
[1646862673556,0.05800076,2707.7,2707.1,0.028045]
[1646862673855,0.534,2707.6,2707.1,0.028045]
[1646862674059,0.04694597,2707.5,2707.0,0.147763]
[1646862675258,0.04694597,2707.5,2706.9,0.028001]
[1646862675458,0.04694597,2707.5,2707.0,1.53441327]
[1646862676059,1.2366102,2707.6,2707.5,0.09389193]
[1646862680754,1.2366102,2707.6,2706.8,0.00321111]
[1646862680957,8.034,2707.5,2706.8,0.00321111]
[1646862681353,5.034,2707.5,2706.8,0.00321111]
[1646862681557,5.034,2707.5,2706.7,1.53446841]
[1646862681762,5.034,2707.5,2706.8,0.00321111]
[1646862681960,5.034,2707.5,2706.6,0.24895792]
[1646862682160,5.034,2707.5,2706.6,0.10118192]
[1646862682360,5.034,2707.5,2706.8,0.029168]
[1646862682361,1.534,2707.5,2706.8,0.029168]
[1646862682761,1.3125902,2707.6,2707.0,0.029168]
[1646862682970,0.0125902,2707.6,2707.5,0.029168]
[1646862686011,0.0125902,2707.6,2707.5,0.176893]
[1646862686216,0.0251804,2708.2,2707.9,5.5]
[1646862686415,0.07117146,2708.6,2708.1,0.0988355]
[1646862686416,0.00156548,2708.5,2708.1,0.0988355]
[1646862686614,0.07117146,2708.6,2708.3,0.029168]
[1646862686817,0.07117146,2708.6,2708.5,0.029168]
[1646862687214,0.07117146,2708.6,2708.5,1.11820324]
[1646862687416,0.13532922,2708.6,2708.5,1.09286029]
[1646862687665,7.32,2709.6,2708.8,5.5]
[1646862687874,0.01440742,2709.1,2709.0,11.42818129]
[1646862688064,0.0284004,2709.7,2709.1,17.2221]
[1646862688268,0.0284004,2709.7,2709.3,11.7221]
[1646862688464,0.0085024,2709.7,2709.4,20.80885196]
[1646862688663,0.0085024,2709.7,2709.5,0.08493161]
[1646862689067,0.032308,2709.8,2709.5,0.08493161]
[1646862689268,0.032308,2709.8,2709.7,0.86988122]
[1646862691171,0.11376327,2710.2,2709.9,5.5]
[1646862691422,0.13552668,2710.0,2709.9,5.57323369]
[1646862692103,0.13552668,2710.0,2709.9,0.07323369]
[1646862694914,0.13552668,2710.0,2709.1,1.0]
[1646862695157,0.13552668,2710.0,2709.1,0.07041146]
[1646862695962,4.56180057,2710.4,2710.3,0.87784833]
[1646862696159,1.0603218,2710.4,2710.3,0.87784833]
[1646862696358,0.0603218,2710.4,2710.3,0.87784833]
[1646862696760,0.11215152,2710.4,2710.3,0.87784833]
[1646862696960,0.13686072,2710.4,2710.3,0.87784833]
[1646862697763,0.36170312,2710.7,2710.4,5.5]
[1646862697764,0.05057862,2710.6,2710.4,5.5]
[1646862697966,0.06170312,2710.7,2710.6,5.5]
[1646862697967,0.08099308,2710.7,2710.6,5.5]
[1646862698167,0.04564246,2710.9,2710.7,5.5]
[1646862698367,0.0306676,2710.9,2710.7,5.5]
[1646862698765,0.0306676,2710.9,2710.6,1.156768]
[1646862699030,0.03552008,2710.9,2710.6,1.156768]
[1646862699429,0.03552008,2710.9,2710.6,1.1276]
[1646862699629,0.03552008,2710.9,2710.4,0.0707533]
[1646862699832,0.03916302,2710.9,2710.4,0.0707533]
[1646862700730,0.03552008,2710.9,2710.4,0.0707533]
[1646862700932,0.00364297,2710.8,2710.6,0.029168]
[1646862701143,0.00364297,2710.8,2710.6,0.752468]
[1646862701335,0.00364297,2710.8,2710.7,0.08204119]
[1646862701534,0.00364297,2710.8,2710.6,0.029168]
[1646862701733,0.00849545,2710.8,2710.4,0.08041701]
[1646862701933,0.00485248,2710.8,2710.4,0.08041701]
[1646862702334,0.00849544,2710.8,2710.4,0.08041701]
[1646862703264,0.00485248,2710.8,2710.4,0.08041701]
[1646862703466,0.00365268,2710.7,2710.4,0.08041701]
[1646862703866,0.00850516,2710.7,2710.4,0.08041701]
[1646862704469,0.00485248,2710.7,2710.4,0.08041701]
[1646862704669,0.00850518,2710.7,2710.4,0.08041701]
[1646862705569,0.00485248,2710.7,2710.4,0.08041701]
[1646862705767,0.00850518,2710.7,2710.4,0.08041701]
[1646862706710,0.00485248,2710.7,2710.4,0.08041701]
[1646862707112,0.00850376,2710.7,2710.4,0.08041701]
[1646862707714,0.00850376,2710.7,2710.6,0.029168]
[1646862707914,0.00485248,2710.7,2710.6,0.029168]
[1646862708119,0.00485248,2710.7,2710.4,0.08041701]
[1646862708320,0.00850376,2710.7,2710.4,0.08041701]
[1646862708519,0.00850376,2710.7,2710.4,11.43041701]
[1646862708719,0.00850376,2710.7,2710.5,3.5]
[1646862708923,0.00850376,2710.7,2710.6,0.07302704]
[1646862709120,0.00485248,2710.7,2710.6,0.07302704]
[1646862709320,0.00485248,2710.7,2710.6,0.10219504]
[1646862709521,0.00850375,2710.7,2710.6,0.10219504]
[1646862710370,0.00485248,2710.7,2710.6,0.10219504]
[1646862713472,0.00485248,2710.7,2710.6,3.60219504]
[1646862713674,0.00485248,2710.7,2710.6,14.95219504]
[1646862714121,0.03011362,2711.0,2710.8,0.08466565]
[1646862715119,0.03011362,2711.0,2710.9,1.01209613]
[1646862715320,0.03011362,2711.0,2710.9,1.09148475]
[1646862715521,0.03376496,2711.0,2710.9,1.09148475]
[1646862716119,2.25740984,2711.7,2711.5,0.84743537]
[1646862716324,0.34344646,2711.6,2711.5,0.84743537]
[1646862716523,0.34344646,2711.6,2711.5,0.93045163]
[1646862716924,2.3965165,2712.1,2711.5,0.93045163]
[1646862716925,0.0297998,2712.2,2711.6,5.5399]
[1646862717123,0.03881984,2711.9,2711.8,0.029168]
[1646862717323,0.0181943,2712.9,2712.0,5.5]
[1646862717529,0.0181943,2712.9,2712.8,0.04155591]
[1646862717530,0.0111548,2712.9,2712.8,0.04155591]
[1646862717794,0.0111548,2712.9,2712.8,12.83828791]
[1646862717795,0.08279832,2712.9,2712.8,12.83828791]
[1646862717981,0.08279832,2712.9,2712.8,1.19322212]
[1646862718382,0.08279832,2712.9,2712.8,2.28596]
[1646862719186,0.08279832,2712.9,2712.8,1.19322212]
[1646862719986,0.10782724,2712.9,2712.8,1.19322212]
[1646862720187,1.96e-05,2713.0,2712.9,5.6077]
[1646862720397,0.06392648,2713.3,2713.0,0.01975304]
[1646862720591,0.06392648,2713.3,2713.1,11.73440887]
[1646862720989,2.648e-05,2713.3,2713.2,0.08164538]
[1646862721194,0.07328172,2713.3,2713.2,0.08164538]
[1646862721419,0.0603053,2713.7,2713.4,5.15]
[1646862721618,0.13654882,2713.9,2713.6,5.5]
[1646862721619,0.08545105,2713.9,2713.6,5.5]
[1646862721813,0.08545105,2713.9,2713.7,0.029168]
[1646862722022,0.08545105,2713.9,2713.7,0.10667056]
[1646862722220,0.19688113,2713.9,2713.7,0.10667056]
[1646862722418,0.19688113,2713.9,2713.8,1.13727569]
[1646862725566,0.19688113,2713.9,2713.4,0.029168]
[1646862725771,0.19688113,2713.9,2713.3,0.07330018]
[1646862726170,0.00385047,2713.8,2713.3,0.07330018]
[1646862726370,0.0394809,2714.1,2713.8,5.0]
[1646862726570,0.04941472,2713.9,2713.5,1.16739227]
[1646862726770,0.04941472,2713.9,2713.4,0.029168]
[1646862727970,0.04941472,2713.9,2713.5,1.53102831]
[1646862728170,0.04941472,2713.9,2713.6,0.07711061]
[1646862728372,0.04941472,2713.9,2713.2,0.029168]
[1646862728572,0.04941472,2713.9,2713.3,1.53102205]
[1646862728775,0.05207344,2713.9,2713.5,0.88683321]
[1646862729050,0.05207344,2713.9,2713.6,1.61836335]
[1646862729249,0.05207344,2713.9,2713.5,0.88683321]
[1646862729448,0.05207344,2713.9,2713.7,0.08328589]
[1646862729649,0.04941472,2713.9,2713.7,0.08328589]
[1646862729852,0.05326508,2713.9,2713.7,0.08328589]
[1646862730049,0.05326508,2713.9,2713.7,0.11245389]
[1646862730253,0.05326508,2713.9,2713.8,1.53096224]
[1646862730658,0.06901608,2713.9,2713.2,0.07410826]
[1646862730854,0.06901608,2713.9,2713.3,1.53119926]
[1646862730855,0.06516572,2713.9,2713.3,1.53119926]
[1646862731051,0.06516572,2713.9,2713.0,0.08634316]
[1646862731252,0.06516572,2713.9,2713.1,1.53125432]
[1646862731451,0.06516572,2713.9,2713.0,0.0008]
[1646862731452,0.92199,2713.8,2713.0,0.0008]
[1646862731652,1.45599,2713.7,2713.0,0.0008]
[1646862731852,0.015751,2713.3,2713.0,0.0008]
[1646862732054,0.03116508,2713.3,2713.0,0.0008]
[1646862732357,0.534,2713.2,2713.0,0.0008]
[1646862732554,2.37853,2713.2,2713.0,0.0008]
[1646862732762,3.60072,2713.2,2713.0,0.0008]
[1646862732964,1.75619,2713.2,2713.0,0.0008]
[1646862733167,1.45619,2713.2,2713.0,0.0008]
[1646862734067,0.0431751,2713.1,2713.0,0.0008]
[1646862734268,0.5771751,2713.1,2713.0,0.0008]
[1646862734671,2.7895738,2713.1,2712.4,1.53164771]
[1646862734975,2.7895738,2713.1,2711.8,0.00379079]
[1646862734976,0.025148,2712.5,2711.8,0.00379079]
[1646862735167,0.534,2712.4,2711.8,0.00379079]
[1646862735370,0.534,2712.4,2711.5,0.84743537]
[1646862735371,5.5,2712.2,2711.5,0.84743537]
[1646862735573,5.5,2712.2,2711.1,0.66817461]
[1646862735574,3.0,2711.8,2711.1,0.66817461]
[1646862735773,0.016177,2711.2,2710.7,0.66817461]
[1646862735972,1.89410432,2711.6,2710.7,0.66817461]
[1646862736172,1.89410432,2711.6,2710.6,0.66817461]
[1646862736173,0.92291,2711.3,2710.6,0.66817461]
[1646862736420,0.05345748,2711.2,2710.6,0.66817461]
[1646862736620,0.534,2711.1,2710.6,0.66817461]
[1646862736822,0.04438058,2711.0,2710.5,0.66817461]
[1646862737019,0.92303,2710.7,2710.3,1.54602294]
[1646862737421,1.84607,2710.7,2710.3,0.87784833]
[1646862737724,1.89031948,2710.7,2710.3,0.87784833]
[1646862737920,1.89031948,2710.7,2710.3,0.82784833]
[1646862738120,1.8461,2710.6,2710.3,0.82784833]
[1646862738322,1.8461,2710.6,2710.4,0.00379259]
[1646862739122,1.8461,2710.6,2710.3,0.82784833]
[1646862739525,0.04781662,2710.5,2710.4,0.00379259]
[1646862740375,0.04781662,2710.5,2710.3,0.82784833]
[1646862740568,0.58181662,2710.5,2710.3,0.82784833]
[1646862740769,0.05284992,2710.4,2710.3,0.83164094]
[1646862740968,0.58684992,2710.4,2710.3,0.83164094]
[1646862741566,0.58684992,2710.4,2710.3,0.82784833]
[1646862743371,4.08684992,2710.4,2710.3,0.82784833]
[1646862743771,5.08684992,2710.4,2710.3,0.82784833]
[1646862744018,1.58684992,2710.4,2710.3,0.82784833]
[1646862744218,0.58684992,2710.4,2710.3,0.82784833]
[1646862744822,0.05284992,2710.4,2710.3,0.82784833]
[1646862745021,0.3,2710.5,2710.3,0.82784833]
[1646862745221,0.04691978,2710.7,2710.3,0.82784833]
[1646862746521,0.96983978,2710.7,2710.3,0.82784833]
[1646862746722,0.05009074,2710.6,2710.4,0.00372278]
[1646862747324,0.92292,2710.7,2710.4,0.00372278]
[1646862747769,1.84582,2711.0,2710.3,0.89889693]
[1646862747971,0.9228,2711.1,2710.4,0.00345924]
[1646862748177,0.9228,2711.1,2710.9,0.99411403]
[1646862748372,1.84555,2711.4,2710.9,0.99411403]
[1646862749174,5.34555,2711.4,2711.0,0.00345897]
[1646862749377,5.39625168,2711.4,2711.0,0.00345897]
[1646862749675,0.58483149,2711.3,2711.0,0.00345897]
[1646862749875,0.92292,2711.1,2711.0,0.00345897]
[1646862750074,0.04621396,2711.0,2710.3,0.82784833]
[1646862750477,3.73811396,2711.0,2710.3,0.82784833]
[1646862750683,3.55165724,2710.9,2710.3,0.82784833]
[1646862750876,0.534,2710.8,2710.3,0.82784833]
[1646862751076,5.39914312,2710.7,2710.3,0.82784833]
[1646862751278,6.39914312,2710.7,2710.3,0.82784833]
[1646862751720,1.84619,2710.6,2710.3,0.82784833]
[1646862751924,4.42318,2710.5,2710.3,0.82784833]
[1646862752120,4.034,2710.4,2710.3,0.37645224]
[1646862752520,5.034,2710.4,2710.3,0.37645224]
[1646862753224,5.22679115,2710.4,2710.3,0.37645224]
[1646862753621,5.22679115,2710.4,2709.1,0.07411229]
[1646862753622,5.0,2710.3,2709.1,0.07411229]
[1646862753823,0.9233325,2709.7,2709.1,0.07411229]
[1646862754026,0.9233325,2709.7,2709.0,0.06994726]
[1646862754226,0.9233325,2709.7,2708.9,0.3721]
[1646862754626,0.9233325,2709.7,2709.0,0.08526574]
[1646862755026,0.9233325,2709.7,2709.2,0.00355681]
[1646862755467,0.92334,2709.5,2709.2,0.00355681]
[1646862756067,3.35809324,2709.7,2709.1,1.5330464]
[1646862756267,2.35809324,2709.7,2709.2,0.00359966]
[1646862756468,3.35809324,2709.7,2709.2,0.00359966]
[1646862756868,2.35809324,2709.7,2709.2,0.00359966]
[1646862757069,3.35809324,2709.7,2709.2,0.00359966]
[1646862757371,0.92334,2709.5,2709.3,0.00359962]
[1646862757974,2.7700458,2709.9,2709.3,0.00359962]
[1646862757975,0.53547287,2710.2,2709.4,0.08188472]
[1646862758271,2.77144287,2710.3,2709.4,0.11105272]
[1646862758473,2.76997,2710.3,2709.4,0.11105272]
[1646862758669,2.76997,2710.3,2709.7,0.00349149]
[1646862759127,0.9231595,2710.2,2709.8,0.99937205]
[1646862759327,0.92315,2710.1,2709.8,0.99937205]
[1646862759527,1.22315,2710.1,2709.8,0.99937205]
[1646862759726,1.22315,2710.1,2709.7,0.08829402]
[1646862759928,1.22315,2710.1,2709.9,0.00343726]
[1646862760928,1.22315,2710.1,2709.6,1.10989612]
[1646862761132,1.22315,2710.1,2709.9,0.00343726]
[1646862761929,1.22315,2710.1,2709.4,0.029168]
[1646862762133,2.1464,2710.1,2709.4,0.029168]
[1646862762330,0.9232516,2710.0,2709.9,0.00332437]
[1646862762769,1.5232516,2710.0,2709.9,0.00332437]
[1646862763170,1.5232516,2710.0,2709.4,0.029168]
[1646862763369,0.92326,2709.8,2709.4,0.029168]
[1646862763571,0.92326,2709.8,2709.1,0.029168]
[1646862763774,0.92326,2709.8,2709.2,1.53307489]
[1646862763972,0.92326,2709.8,2709.3,0.07475362]
[1646862764380,1.84689,2709.6,2708.7,0.029168]
[1646862764576,0.534,2709.5,2708.8,1.53325665]
[1646862764776,0.534,2709.5,2709.4,0.00332493]
[1646862765375,2.3811338,2709.5,2709.4,0.00332493]
[1646862765574,2.3811338,2709.5,2709.0,0.07322082]
[1646862765777,0.92354,2709.1,2708.4,0.07473942]
[1646862765976,1.22354,2709.1,2708.5,1.53337426]
[1646862766177,1.00147287,2709.3,2708.6,1.56254226]
[1646862766424,0.30147287,2709.5,2708.7,1.62062115]
[1646862766618,0.00147287,2709.6,2708.9,0.0992926]
[1646862766919,0.534,2709.9,2709.1,0.06948035]
[1646862766920,0.53547287,2709.9,2709.1,0.06948035]
[1646862767118,0.534,2709.9,2709.1,0.06948035]
[1646862767319,0.534,2709.9,2709.0,0.00332355]
[1646862767320,1.4573085,2709.9,2709.0,0.00332355]
[1646862767518,0.92326,2709.7,2709.4,1.0183541]
[1646862767717,0.92326,2709.7,2709.4,1.10476332]
[1646862768117,1.22326,2709.7,2709.4,1.10476332]
[1646862768320,1.22326,2709.7,2709.4,1.10808631]
[1646862769125,0.3,2709.8,2709.5,0.07697688]
[1646862769527,0.3,2710.0,2709.5,0.07697688]
[1646862769828,1.20377287,2710.4,2709.5,0.07697688]
[1646862770027,0.3,2710.4,2709.5,0.07697688]
[1646862770271,1.22311,2710.2,2709.5,0.07697688]
[1646862770668,1.22311,2710.2,2709.8,0.00331448]
[1646862771266,3.5,2710.1,2709.8,0.00331448]
[1646862771471,4.034,2710.1,2709.8,0.00331448]
[1646862771665,4.034,2710.1,2709.3,0.029168]
[1646862771666,1.84669,2710.0,2709.3,0.029168]
[1646862771865,2.38069,2710.0,2709.9,0.00331442]
[1646862772071,2.68069,2710.0,2709.9,0.00331442]
[1646862772265,3.68069,2710.0,2709.9,0.00331442]
[1646862772865,3.68069,2710.0,2709.5,0.0764884]
[1646862772866,0.92331,2709.8,2709.5,0.0764884]
[1646862773268,1.22331,2709.8,2709.5,0.0764884]
[1646862774132,1.22331,2709.8,2709.3,0.029168]
[1646862774327,1.22331,2709.8,2709.5,0.00333207]
[1646862774528,1.22331,2709.8,2709.5,0.07888028]
[1646862774729,1.22331,2709.8,2709.7,0.07272329]
[1646862774927,1.22331,2709.8,2709.7,1.6057608]
[1646862775329,1.3,2709.9,2709.8,0.07912881]
[1646862775628,1.3,2709.9,2709.8,1.53294263]
[1646862775829,0.3,2709.9,2709.8,1.53294263]
[1646862776028,0.3,2710.0,2709.8,1.53294263]
[1646862776029,0.6,2710.0,2709.8,1.53294263]
[1646862776228,2.34532647,2710.3,2709.8,1.53294263]
[1646862776429,4.19177757,2710.3,2709.8,1.53294263]
[1646862776631,3.19177757,2710.3,2709.8,1.53625579]
[1646862776829,4.19177757,2710.3,2709.8,1.53625579]
[1646862777028,0.92325,2710.1,2709.8,1.53625579]
[1646862777228,1.8464689,2710.1,2709.8,1.53625579]
[1646862777428,0.92324,2709.9,2709.8,1.53625579]
[1646862777681,0.92324,2709.9,2709.8,1.53294263]
[1646862777869,0.92324,2709.9,2709.8,1.53625573]
[1646862778270,1.22324,2709.9,2709.8,1.53625573]
[1646862778871,1.22324,2709.9,2709.8,1.53294263]
[1646862780876,4.72324,2709.9,2709.8,1.53294263]
[1646862781276,6.25724,2709.9,2709.8,1.53294263]
[1646862781719,8.10406,2709.9,2709.8,1.53294263]
[1646862781922,8.10406,2709.9,2709.7,0.00331593]
[1646862782119,7.4806,2709.9,2709.7,0.00331593]
[1646862782517,7.4806,2709.9,2709.5,1.53294263]
[1646862782719,7.4806,2709.9,2709.7,0.00331599]
[1646862782720,3.9806,2709.9,2709.7,0.00331599]
[1646862782918,3.9306,2709.9,2709.7,0.00331599]
[1646862783320,4.8539659,2709.9,2709.7,0.00331599]
[1646862783718,5.41434158,2709.9,2709.5,1.53294263]
[1646862783919,5.41434158,2709.9,2709.7,0.00331558]
[1646862784122,3.05724,2709.9,2709.7,0.00331558]
[1646862784324,2.05724,2709.9,2709.7,0.00331558]
[1646862784527,2.75724,2709.9,2709.7,0.00331558]
[1646862784723,0.834,2709.9,2709.7,0.00331558]
[1646862784923,1.834,2709.9,2709.6,0.07798474]
[1646862785181,1.834,2709.9,2709.7,2.68665798]
[1646862785472,0.834,2709.9,2709.8,1.53294263]
[1646862785672,0.3,2709.9,2709.8,1.53294263]
[1646862786275,0.85232857,2710.1,2709.8,1.53294263]
[1646862787177,0.3,2710.1,2709.8,1.53294263]
[1646862787572,0.3,2710.1,2709.8,1.5362581]
[1646862787775,2.75712,2710.2,2709.8,1.5362581]
[1646862787973,1.75712,2710.2,2709.8,1.5362581]
[1646862788173,2.75712,2710.2,2709.8,1.5362581]
[1646862788374,2.75712,2710.2,2709.8,1.53294263]
[1646862788576,1.75712,2710.2,2709.9,0.00331541]
[1646862788773,2.75712,2710.2,2709.9,0.00331541]
[1646862789022,1.75712,2710.2,2709.9,0.00331541]
[1646862789221,2.75712,2710.2,2709.9,0.00331541]
[1646862789422,1.75712,2710.2,2709.9,0.00331541]
[1646862789622,2.75712,2710.2,2709.8,1.53294263]
[1646862789926,2.75712,2710.2,2709.9,0.00331535]
[1646862789927,1.75712,2710.2,2709.9,0.00331535]
[1646862790122,2.75712,2710.2,2709.9,0.00331535]
[1646862790421,1.75712,2710.2,2709.9,0.00331535]
[1646862790625,2.75712,2710.2,2709.9,0.00331535]
[1646862790822,1.75712,2710.2,2709.8,1.53294263]
[1646862791022,2.75712,2710.2,2709.8,1.53294263]
[1646862791223,1.75712,2710.2,2709.9,0.00331533]
[1646862791423,2.75712,2710.2,2709.9,0.00331533]
[1646862792026,2.75712,2710.2,2709.8,1.53294263]
[1646862792225,2.75712,2710.2,2709.9,0.00331533]
[1646862792669,1.75712,2710.2,2709.9,0.00331533]
[1646862792968,2.75712,2710.2,2709.9,0.00331533]
[1646862793169,2.75712,2710.2,2709.8,1.53294263]
[1646862793467,0.9232005,2710.1,2709.9,0.00331533]
[1646862793869,1.84652,2710.0,2709.9,0.00331533]
[1646862794071,2.68052,2710.0,2709.9,0.00331533]
[1646862794471,3.68052,2710.0,2709.8,1.53294263]
[1646862794673,3.68052,2710.0,2709.8,0.00331545]
[1646862795273,0.92324,2709.9,2709.8,0.00331545]
[1646862795676,0.92324,2709.9,2709.6,1.53294263]
[1646862795677,4.95724,2709.9,2709.6,1.53294263]
[1646862795875,4.95724,2709.9,2709.8,0.00331551]
[1646862796074,5.95724,2709.9,2709.8,0.00331551]
[1646862796520,2.45724,2709.9,2709.8,0.00331551]
[1646862796819,2.45724,2709.9,2709.6,1.53317116]
[1646862796820,1.45724,2709.9,2709.6,1.53317116]
[1646862797018,1.45724,2709.9,2709.7,1.53648673]
[1646862797219,2.3805741,2709.9,2709.8,1.53317116]
[1646862797423,1.45724,2709.9,2709.8,1.53317116]
[1646862797821,1.45724,2709.9,2709.7,0.00331557]
[1646862797822,0.534,2709.9,2709.7,0.00331557]
[1646862798019,0.534,2709.9,2709.6,1.53317116]
[1646862798020,0.484,2709.9,2709.6,1.53317116]
[1646862798219,0.484,2709.9,2709.7,1.53317116]
[1646862798421,0.484,2709.9,2709.8,2.72319364]
[1646862798626,0.484,2709.9,2709.8,1.53317116]
[1646862798822,0.92319,2710.3,2709.8,1.53317116]
[1646862799024,0.92309,2710.3,2709.9,1.53317116]
[1646862799222,0.92309,2710.3,2710.0,0.07033894]
[1646862799523,0.92309,2710.3,2710.1,1.53317116]
[1646862800770,0.92309,2710.3,2710.1,1.53648631]
[1646862801368,1.22309,2710.3,2710.1,1.53648631]
[1646862801568,1.22309,2710.3,2710.1,1.53317116]
[1646862801769,1.22309,2710.3,2710.2,1.53317116]
[1646862802473,1.22309,2710.3,2710.1,0.00099746]
[1646862802877,1.22309,2710.3,2710.1,0.06963029]
[1646862803075,1.22309,2710.3,2710.2,1.53317116]
[1646862804725,1.22309,2710.3,2709.6,0.1844]
[1646862804927,0.92331,2710.0,2709.7,1.60405311]
[1646862805127,0.92331,2710.0,2709.8,1.53307127]
[1646862805325,1.22331,2710.0,2709.8,1.53307127]
[1646862805927,1.27479404,2710.0,2709.8,1.53307127]
[1646862806128,1.27479404,2710.0,2709.4,1.15772217]
[1646862806129,2.19811404,2710.0,2709.9,1.53307127]
[1646862806325,2.19811404,2710.0,2709.5,1.53307127]
[1646862806527,2.49811404,2710.0,2709.6,1.53307127]
[1646862806726,2.49811404,2710.0,2709.5,1.53307127]
[1646862807028,0.9233722,2709.9,2709.5,1.53307127]
[1646862807228,0.05267056,2709.7,2709.6,1.53307127]
[1646862807429,0.58667056,2709.7,2709.6,1.53307127]
[1646862807681,1.45743,2709.7,2709.6,1.53307127]
[1646862807870,0.04877294,2709.5,2709.0,0.66817461]
[1646862808174,1.45743,2709.7,2709.5,0.09754588]
[1646862808371,4.2276128,2709.7,2709.6,1.53327684]
[1646862808775,5.2276128,2709.7,2709.6,1.53327684]
[1646862808975,6.1510328,2709.7,2709.6,1.53327684]
[1646862809376,6.4510328,2709.7,2709.6,1.53327684]
[1646862811081,3.0,2709.6,2709.5,0.10134687]
[1646862811281,3.0,2709.6,2709.5,0.09754588]
[1646862811282,10.80476,2709.6,2709.5,0.09754588]
[1646862811524,10.80476,2709.6,2709.5,0.10134687]
[1646862811726,1.84728,2709.4,2708.8,0.029168]
[1646862811924,0.92363,2709.2,2708.8,0.029168]